fUSD/lending_fUSD_20251210
["ID","MTS","AMOUNT","RATE_DAILY","PERIOD"]
[398132411,1765393842274,-500.0,0.00041095,60]
[398132412,1765393842285,-500.0,0.00041095,60]
[398132413,1765393842296,-500.0,0.00041095,60]
[398132414,1765393842306,-500.0,0.00041095,60]
[398132415,1765393842316,-500.0,0.00041095,60]
[398132416,1765393842327,-500.0,0.00041095,60]
[398132417,1765393842338,-500.0,0.00041095,60]
[398132418,1765393842347,-500.0,0.00041095,60]
[398132419,1765393842357,-500.0,0.00041095,60]
[398132420,1765393842366,-500.0,0.00041095,60]
[398132421,1765393842375,-500.0,0.00041095,60]
[398132422,1765393842385,-500.0,0.00041095,60]
[398132423,1765393842395,-600.0,0.00041096,120]
[398132424,1765393842405,-856.16,0.00041096,2]
[398132425,1765393842416,-500.0,0.00041096,60]
[398132426,1765393842426,-606.20043971,0.00041096,60]
[398132427,1765393842436,-500.0,0.00041096,60]
[398132428,1765393842446,-500.0,0.00041096,60]
[398132429,1765393842457,-500.0,0.00041096,60]
[398132430,1765393842467,-3969.65094312,0.00041103,15]
[398132431,1765393842481,-15829.47129686,0.00041127,15]
[398132432,1765393842492,-514.0,0.00041147,2]
[398132433,1765393842504,-500.0,0.00041147,2]
[398132434,1765393842515,-500.0,0.00041147,2]
[398132435,1765393842525,-500.0,0.00041147,2]
[398132436,1765393842534,-500.0,0.00041147,2]
[398132437,1765393842546,-500.0,0.00041147,2]
[398132438,1765393842555,-598.61,0.00041163,60]
[398132439,1765393842566,-429.12321724,0.00041173,15]
[398132451,1765393843262,-1.7e-07,0.00041173,15]
[398132452,1765393843274,-644.10951857,0.00041173,15]
[398132453,1765393843286,-926.66,0.00041173,15]
[398132454,1765393843298,-1969.75820714,0.00041173,15]
[398132455,1765393843308,-528.0,0.00041186,7]
[398132456,1765393843318,-617.0,0.00041186,7]
[398132457,1765393843328,-493.51651732,0.00041186,7]
[398132458,1765393843339,-41.48348268,0.00041186,7]
[398132459,1765393843349,-500.0,0.00041186,7]
[398132460,1765393843360,-500.0,0.00041186,7]
[398132461,1765393843370,-9209.31651732,0.00041193,15]
[398132462,1765393843452,-6620.15477954,0.00041193,15]
[398132463,1765393843464,-200.11798413,0.00041199,60]
[398132464,1765393843474,-207.02860173,0.00041214,2]
[398132465,1765393843484,-209.36193513,0.00041214,2]
[398132466,1765393843495,-2863.758278,0.00041222,4]
[398132467,1765393843510,-500.0,0.00041232,60]
[398132468,1765393843520,-256.91646343,0.00041232,60]
[398132470,1765393843530,-150.0,0.00041232,60]
[398132471,1765393843541,-3969.65094312,0.00041243,15]
[398132472,1765393843554,-8259.72124836,0.00041259,15]
[398132473,1765393843567,-500.0,0.00041259,15]
[398132474,1765393843580,-7069.7500485,0.00041259,15]
[398132475,1765393843591,-192.0152441,0.00041281,2]
[398132476,1765393843602,-514.0,0.00041284,2]
[398132477,1765393843613,-500.0,0.00041284,2]
[398132478,1765393843623,-500.0,0.00041284,2]
[398132479,1765393843633,-500.0,0.00041284,2]
[398132480,1765393843643,-500.0,0.00041284,2]
[398132481,1765393843654,-500.0,0.00041284,2]
[398132482,1765393843665,-3969.65094312,0.00041313,15]
[398132483,1765393843675,-2577.81628441,0.00041317,4]
[398132484,1765393843691,-3149.70027159,0.00041317,4]
[398132485,1765393843701,-150.85,0.00041317,2]
[398132486,1765393843711,-528.0,0.00041323,7]
[398132487,1765393843721,-617.0,0.00041323,7]
[398132488,1765393843732,-535.0,0.00041323,7]
[398132489,1765393843742,-500.0,0.00041323,7]
[398132490,1765393843755,-500.0,0.00041323,7]
[398132491,1765393843765,-2188.46962606,0.00041325,15]
[398132493,1765393843789,-250.0,0.00041325,15]
[398132494,1765393843801,-10873.6298,0.00041325,15]
[398132548,1765394073884,-500.0,0.00021918,4]
[398132549,1765394073910,-246.3328935,0.00021918,4]
[398132550,1765394077147,-240.53444241,0.00021918,4]
[398132551,1765394078694,-147.64361531,0.00021918,4]
[398132552,1765394078720,-118.10427984,0.00024953,2]
[398132553,1765394080098,-310.49768309,0.00024953,2]
[398132555,1765394103892,-153.03,0.00019962,2]
[398132556,1765394103919,-153.03,0.00021777,2]
[398132557,1765394103944,-118.6378951,0.00023592,2]
[398132558,1765394105625,-34.3921049,0.00023592,2]
[398132559,1765394105666,-116.86852949,0.00024953,2]
[398132560,1765394133939,-18.57028567,0.00024953,2]
[398132561,1765394133964,-153.03,0.00025407,2]
[398132562,1765394133989,-57.4755811,0.00027221,2]
[398132564,1765394403986,-95.5544189,0.00027221,2]
[398132565,1765394404011,-152.73,0.00028339,2]
[398132566,1765394404035,-45.06004518,0.00028339,2]
[398132567,1765394555283,-157.59038098,0.00028339,2]
[398132568,1765394555305,-63.5928472,0.00029036,2]
[398132569,1765394642754,250.0,0.000202,30]
[398132570,1765394718888,-182.17024235,0.00018,2]
[398132571,1765394720416,-196.06710316,0.00018,2]
[398132572,1765394720822,-8725.87,0.00018,2]
[398132573,1765394722990,-394.48604871,0.00018,2]
[398132574,1765394723647,-10000.01,0.00018,2]
[398132575,1765394723875,-10000.01,0.00018,2]
[398132576,1765394723981,-10000.01,0.00018,2]
[398132577,1765394724104,-10000.01,0.00018,2]
[398132578,1765394724236,-10000.01,0.00018,2]
[398132579,1765394724371,-10000.01,0.00018,2]
[398132580,1765394724518,-10000.01,0.00018,2]
[398132581,1765394724597,-10000.01,0.00018,2]
[398132582,1765394725708,-285.82653872,0.00018,2]
[398132583,1765394726435,1023.25206293,0.000108,2]
[398132584,1765394727214,-306.53792585,0.00018,2]
[398132585,1765394729183,-332.65596373,0.00018,2]
[398132586,1765394729825,-10000.01,0.00018,2]
[398132587,1765394731151,-267.22706874,0.00018,2]
[398132588,1765394733215,-250.0,0.00018,2]
[398132589,1765394735274,-169.87747718,0.00017873,2]
[398132590,1765394737454,-263.57839106,0.00017873,2]
[398132591,1765394739063,-66.54413176,0.00017873,2]
[398132592,1765394739103,-9866.92173648,0.00018,2]
[398132593,1765394741682,-151.7580444,0.00018,2]
[398132594,1765394744949,-166.9823961,0.0001791,2]
[398132595,1765394745446,-4953.3107801,0.0001791,2]
[398132596,1765394745470,-93.3884398,0.0001791,2]
[398132597,1765394746562,-229.75083333,0.00018,2]
[398132598,1765394748518,-10000.01,0.00018,2]
[398132599,1765394749612,-206.85046228,0.00018,2]
[398132600,1765394752830,-162.47845546,0.00018,2]
[398132601,1765394754807,-10000.01,0.00018,2]
[398132602,1765394755222,766.68366607,0.000129,2]
[398132603,1765394755415,-307.45917061,0.00018,2]
[398132604,1765394756914,-534.92130023,0.00018,2]
[398132605,1765394758879,-163.54468731,0.00018,2]
[398132606,1765394760364,-427.70451989,0.00018,2]
[398132607,1765394762390,-156.36076465,0.00018,2]
[398132608,1765394765608,-218.27466282,0.00018,2]
[398132609,1765394767187,4265.91535021,0.00011,2]
[398132610,1765394767551,-182.25578041,0.00017873,2]
[398132611,1765394770049,-317.74421959,0.00017873,2]
[398132612,1765394770075,-162.71423238,0.00018,2]
[398132613,1765394771581,-357.46141843,0.00018,2]
[398132614,1765394772966,-171.57292065,0.00018,2]
[398132615,1765394774435,-155.67,0.00018,2]
[398132616,1765394776458,-494.85596282,0.00018,2]
[398132617,1765394778035,-275.82636046,0.00018,2]
[398132618,1765394780957,-232.98629138,0.00018,2]
[398132619,1765394783538,-175.25556055,0.00018,2]
[398132620,1765394785075,-190.93109627,0.00018,2]
[398132621,1765394786544,-151.80066059,0.00018,2]
[398132631,1765394791668,-247.74917894,0.00017999,2]
[398132632,1765394793173,-35.03210526,0.00017999,2]
[398132633,1765394793197,-137.08638026,0.00017999,2]
[398132634,1765394795542,-184.77387785,0.00017999,2]
[398132635,1765394797055,-178.13974189,0.00017999,2]
[398132636,1765394797078,-14.18743864,0.00017999,2]
[398132637,1765394798472,-251.99674739,0.00017999,2]
[398132638,1765394800422,-188.93666038,0.00017999,2]
[398132639,1765394802420,-62.2239947,0.00017999,2]
[398132640,1765394802445,-450.37107843,0.00017999,2]
[398132641,1765394805789,-49.62892157,0.00017999,2]
[398132642,1765394805815,-158.35170685,0.00017999,2]
[398132643,1765394807735,-152.38952007,0.00017999,2]
[398132644,1765394811125,-189.25877308,0.00017999,2]
[398132645,1765394811155,-181.96385579,0.00017999,2]
[398132646,1765394811180,-500.0,0.00017999,2]
[398132647,1765394811203,-151.77053699,0.00017999,2]
[398132648,1765394811224,-327.40110584,0.00017999,2]
[398132649,1765394811250,-500.0,0.00017999,2]
[398132650,1765394811271,-500.0,0.00017999,2]
[398132651,1765394811294,-500.0,0.00017999,2]
[398132652,1765394811320,-500.0,0.00017999,2]
[398132653,1765394811343,-500.0,0.00017999,2]
[398132654,1765394811369,-500.0,0.00017999,2]
[398132655,1765394811392,-500.0,0.00017999,2]
[398132656,1765394811416,-461.5739495,0.00017999,2]
[398132657,1765394812024,-38.4260505,0.00017999,2]
[398132658,1765394812051,-336.89973235,0.00017999,2]
[398132659,1765394814541,-154.87400577,0.00017999,2]
[398132660,1765394815983,-8.22626188,0.00017999,2]
[398132661,1765394816011,-303.94940431,0.00017999,2]
[398132662,1765394817138,10000.01,0.000162,5]
[398132663,1765394817164,10000.01,0.000162,5]
[398132664,1765394817186,8650.01438471,0.000162,5]
[398132665,1765394817553,-196.05059569,0.00017999,2]
[398132666,1765394817579,-62.96498655,0.00017999,2]
[398132667,1765394821289,300.0,0.00017998,2]
[398132668,1765394821388,-187.82433381,0.00017999,2]
[398132669,1765394821629,150.0,0.00017998,2]
[398132670,1765394823524,-249.21067964,0.00017999,2]
[398132671,1765394823548,-39.97757638,0.00017999,2]
[398132672,1765394825436,-161.36549056,0.00017999,2]
[398132673,1765394828646,-298.65693306,0.00017999,2]
[398132674,1765394828673,-60.23926117,0.00017999,2]
[398132675,1765394832166,-260.40417082,0.00017999,2]
[398132676,1765394834724,-179.35656801,0.00017999,2]
[398132677,1765394834746,-88.82379783,0.00017999,2]
[398132678,1765394837474,-179.41517951,0.00017999,2]
[398132679,1765394841065,-178.64289358,0.00017999,2]
[398132680,1765394841097,-189.22742294,0.00017999,2]
[398132681,1765394846172,500.0,0.00017973,2]
[398132682,1765394846208,-165.92532664,0.00017999,2]
[398132683,1765394846398,500.0,0.00017973,2]
[398132684,1765394846585,500.0,0.00017973,2]
[398132685,1765394846809,500.0,0.00017973,2]
[398132686,1765394846983,500.0,0.00017973,2]
[398132687,1765394847179,500.0,0.00017973,2]
[398132690,1765394847733,500.0,0.00017973,2]
[398132691,1765394847925,500.0,0.00017973,2]
[398132692,1765394848106,150.0,0.00017973,2]
[398132693,1765394848243,-144.84725042,0.00017999,2]
[398132694,1765394848268,-34.0518324,0.00017999,2]
[398132695,1765394849408,500.0,0.00017873,2]
[398132696,1765394850175,-120.53915559,0.00017999,2]
[398132697,1765394850202,-32.50369446,0.00017999,2]
[398132698,1765394851200,500.0,0.00017873,2]
[398132699,1765394851822,643.73111686,0.00017873,2]
[398132700,1765394851941,500.0,0.00017873,2]
[398132701,1765394852025,500.0,0.00017873,2]
[398132702,1765394853277,-386.4621156,0.00017999,2]
[398132703,1765394857437,-81.03418994,0.00017999,2]
[398132704,1765394857465,-141.82509584,0.00017999,2]
[398132705,1765394860208,326.58769091,0.00017899,2]
[398132706,1765394861288,-161.71796653,0.00017999,2]
[398132707,1765394863394,-196.45693763,0.00017999,2]
[398132708,1765394863418,-12.08577585,0.00017999,2]
[398132709,1765394866147,-159.15974199,0.00017999,2]
[398132710,1765394870067,-301.74918856,0.00017999,2]
[398132711,1765394871650,-27.0052936,0.00017999,2]
[398132712,1765394871673,-374.76939719,0.00017999,2]
[398132713,1765394875399,2879.69119223,0.00017,2]
[398132714,1765394875425,10000.01,0.00017,2]
[398132715,1765394877253,-188.28527227,0.00017,2]
[398132716,1765394877618,-6634.09026508,0.00017,2]
[398132717,1765394877716,-10000.01,0.00017,2]
[398132718,1765394879320,-167.61786871,0.00017,2]
[398132719,1765394879776,-10000.01,0.00017,2]
[398132720,1765394879944,-10000.01,0.00017,2]
[398132721,1765394880096,-1570.8896902,0.00017,2]
[398132722,1765394880135,-166.59050352,0.0001791,2]
[398132723,1765394880174,-1200.0,0.00017998,2]
[398132724,1765394880754,-125.23060281,0.00017999,2]
[398132725,1765394880787,-294.520007,0.00017999,2]
[398132726,1765394882791,-205.479993,0.00017999,2]
[398132727,1765394882824,-147.03039301,0.00017999,2]
[398132729,1765394883925,497.64029733,0.00017873,2]
[398132730,1765394885056,500.0,0.00017873,2]
[398132731,1765394888975,-238.49027609,0.00017999,2]
[398132732,1765394893034,-114.4793309,0.00017999,2]
[398132733,1765394893058,-277.86576068,0.00017999,2]
[398132734,1765394894951,-107.42381977,0.00017999,2]
[398132735,1765394894978,-183.32464431,0.00017999,2]
[398132736,1765394897023,-316.67535569,0.00017999,2]
[398132737,1765394897050,-22.83550891,0.00017999,2]
[398132738,1765394899457,-390.13907722,0.00017999,2]
[398132739,1765394900131,387.60672521,0.0001,2]
[398132740,1765394900194,235.55344904,0.00016227,2]
[398132741,1765394901027,-87.02541387,0.00017999,2]
[398132742,1765394901052,-212.97458613,0.00017999,2]
[398132743,1765394903251,-226.49046713,0.00017999,2]
[398132744,1765394903349,290.27485092,0.00015,2]
[398132745,1765394907322,-60.53494674,0.00017999,2]
[398132746,1765394907348,-122.54499319,0.00017999,2]
[398132747,1765394910116,-280.40737699,0.00017999,2]
[398132748,1765394911512,-97.04762982,0.00017999,2]
[398132749,1765394911555,-171.89277929,0.00017999,2]
[398132750,1765394911670,2723.19820944,0.0001,2]
[398132751,1765394912984,-157.5150516,0.00017999,2]
[398132752,1765394913973,500.0,0.00017999,2]
[398132753,1765394914229,500.0,0.00017999,2]
[398132754,1765394914501,500.0,0.00017999,2]
[398132755,1765394914733,500.0,0.00017999,2]
[398132756,1765394914920,-169.10002417,0.00017999,2]
[398132757,1765394915086,500.0,0.00017999,2]
[398132758,1765394918806,-1.49214494,0.00017999,2]
[398132759,1765394918839,-295.02650604,0.00017999,2]
[398132760,1765394920847,-201.88478862,0.00017999,2]
[398132761,1765394921464,2577.70015217,0.0001,2]
[398132762,1765394922369,-3.08870534,0.00017999,2]
[398132763,1765394922393,-323.32490093,0.00017999,2]
[398132764,1765394923940,-176.67509907,0.00017999,2]
[398132765,1765394923966,-120.15816714,0.00017999,2]
[398132766,1765394925371,-214.97346573,0.00017999,2]
[398132767,1765394926944,-164.86836713,0.00017999,2]
[398132768,1765394926977,-211.2812674,0.00017999,2]
[398132769,1765394928088,298.35520851,0.00017899,2]
[398132770,1765394932321,-288.7187326,0.00017999,2]
[398132771,1765394932348,-19.98024187,0.00017999,2]
[398132772,1765394934141,298.35520851,0.00017905,2]
[398132773,1765394937106,-198.82948025,0.00017999,2]
[398132774,1765394938641,-273.86768427,0.00017999,2]
[398132775,1765394940129,298.35520851,0.0001791,2]
[398132776,1765394941125,-7.32259361,0.00017999,2]
[398132777,1765394941149,-221.4758052,0.00017999,2]
[398132778,1765394943146,-278.5241948,0.00017999,2]
[398132779,1765394943174,-9.64636925,0.00017999,2]
[398132780,1765394947119,-397.53230067,0.00017999,2]
[398132781,1765394947240,390.61098769,0.00017873,2]
[398132782,1765394947263,109.38901231,0.00017873,2]
[398132783,1765394950548,-92.82133008,0.00017999,2]
[398132784,1765394950573,-500.0,0.00017999,2]
[398132785,1765394950599,-116.65013357,0.00017999,2]
[398132786,1765394951934,-154.7392337,0.00017999,2]
[398132787,1765394953896,-228.61063273,0.00017999,2]
[398132788,1765394953922,-115.75926138,0.00017999,2]
[398132789,1765394957276,-167.687174,0.00017999,2]
[398132790,1765394958705,-214.17346128,0.00017999,2]
[398132791,1765394960295,-2.38010334,0.00017999,2]
[398132792,1765394960321,-276.12737404,0.00017999,2]
[398132793,1765394961804,-223.87262596,0.00017999,2]
[398132794,1765394961825,-319.31408763,0.00017999,2]
[398132795,1765394965478,-180.68591237,0.00017999,2]
[398132796,1765394965502,-119.31408763,0.00017999,2]
[398132797,1765394968124,-165.13824948,0.00017999,2]
[398132798,1765394969571,-215.54766289,0.00017999,2]
[398132799,1765394969599,-5.54576887,0.00017999,2]
[398132800,1765394971275,500.0,0.00017873,2]
[398132801,1765394972607,-211.92726403,0.00017999,2]
[398132802,1765394973008,500.0,0.00017873,2]
[398132803,1765394973699,500.0,0.00017873,2]
[398132804,1765394977237,-282.5269671,0.00017999,2]
[398132805,1765394977260,-20.98440172,0.00017999,2]
[398132806,1765394980856,-303.77588237,0.00017999,2]
[398132807,1765394983406,-175.23971591,0.00017999,2]
[398132808,1765394983433,-0.97373107,0.00017999,2]
[398132809,1765394986707,-174.30289042,0.00017999,2]
[398132810,1765394989781,-220.51439262,0.00017999,2]
[398132811,1765394991915,-104.20898589,0.00017999,2]
[398132812,1765394991943,-90.71331134,0.00017999,2]
[398132813,1765394993685,-300.17623263,0.00017999,2]
[398132814,1765394996906,-109.11045603,0.00017999,2]
[398132815,1765394996931,-188.47802971,0.00017999,2]
[398132816,1765394998495,-311.52197029,0.00017999,2]
[398132817,1765394998522,-2.61547696,0.00017999,2]
[398132818,1765395001252,-263.45871197,0.00017999,2]
[398132819,1765395001522,1200.0,0.00017998,2]
[398132820,1765395001550,300.0,0.00017998,2]
[398132821,1765395001585,300.0,0.00017998,2]
[398132822,1765395003774,304.0,0.00017999,2]
[398132823,1765395004412,500.0,0.00017873,2]
[398132824,1765395006674,500.0,0.00017873,2]
[398132825,1765395007971,2442.57,0.0001799,2]
[398132826,1765395008194,2442.57,0.0001799,2]
[398132827,1765395008997,-233.92581107,0.00017999,2]
[398132828,1765395009025,-133.96380832,0.00017999,2]
[398132829,1765395009443,164.16,0.0001799,2]
[398132830,1765395013534,-280.94220779,0.00017999,2]
[398132831,1765395015133,-85.09398389,0.00017999,2]
[398132832,1765395015160,-111.19382429,0.00017999,2]
[398132833,1765395017112,250.60859262,0.0001799,2]
[398132834,1765395017598,-158.93832081,0.00017999,2]
[398132835,1765395021582,-229.8678549,0.00017999,2]
[398132836,1765395021608,-35.63380589,0.00017999,2]
[398132837,1765395023754,-174.742747,0.00017999,2]
[398132838,1765395029624,-277.24932245,0.00017999,2]
[398132839,1765395031662,-12.37412466,0.00017999,2]
[398132840,1765395031687,-156.37669356,0.00017999,2]
[398132849,1765395031995,-343.62330644,0.00017999,2]
[398132851,1765395032007,-500.0,0.00017999,2]
[398132853,1765395032017,-500.0,0.00017999,2]
[398132854,1765395032027,-500.0,0.00017999,2]
[398132855,1765395032037,-500.0,0.00017999,2]
[398132856,1765395032049,-500.0,0.00017999,2]
[398132857,1765395032060,-500.0,0.00017999,2]
[398132858,1765395032070,-500.0,0.00017999,2]
[398132859,1765395032083,-152.65050124,0.00017999,2]
[398132860,1765395032094,-500.0,0.00017999,2]
[398132861,1765395032107,-500.0,0.00017999,2]
[398132862,1765395032119,-500.0,0.00017999,2]
[398132863,1765395032131,-500.0,0.00017999,2]
[398132864,1765395032142,-500.0,0.00017999,2]
[398132865,1765395032152,-500.0,0.00017999,2]
[398132866,1765395032163,-500.0,0.00017999,2]
[398132867,1765395032173,-500.0,0.00017999,2]
[398132868,1765395032184,-500.0,0.00017999,2]
[398132869,1765395032194,-500.0,0.00017999,2]
[398132870,1765395032205,-500.0,0.00017999,2]
[398132871,1765395032215,-500.0,0.00017999,2]
[398132872,1765395032225,-500.0,0.00017999,2]
[398132873,1765395032236,-500.0,0.00017999,2]
[398132874,1765395032246,-500.0,0.00017999,2]
[398132875,1765395032256,-500.0,0.00017999,2]
[398132876,1765395032266,-500.0,0.00017999,2]
[398132877,1765395032275,-500.0,0.00017999,2]
[398132878,1765395032285,-500.0,0.00017999,2]
[398132879,1765395032299,-500.0,0.00017999,2]
[398132880,1765395032309,-500.0,0.00017999,2]
[398132881,1765395032319,-500.0,0.00017999,2]
[398132883,1765395032330,-500.0,0.00017999,2]
[398132885,1765395032340,-500.0,0.00017999,2]
[398132887,1765395032350,-500.0,0.00017999,2]
[398132889,1765395032360,-500.0,0.00017999,2]
[398132891,1765395032369,-500.0,0.00017999,2]
[398132893,1765395032379,-500.0,0.00017999,2]
[398132895,1765395032389,-500.0,0.00017999,2]
[398132897,1765395032399,-500.0,0.00017999,2]
[398132899,1765395032408,-500.0,0.00017999,2]
[398132901,1765395032418,-500.0,0.00017999,2]
[398132903,1765395032429,-500.0,0.00017999,2]
[398132905,1765395032438,-48.96928311,0.00017999,2]
[398132908,1765395032451,-451.03071689,0.00017999,2]
[398132910,1765395032460,-208.11500141,0.00017999,2]
[398132912,1765395032473,-291.88499859,0.00017999,2]
[398132914,1765395032483,-500.0,0.00017999,2]
[398132916,1765395032493,-116.42660997,0.00017999,2]
[398132919,1765395032505,-383.57339003,0.00017999,2]
[398132921,1765395032514,-322.32021128,0.00017999,2]
[398132923,1765395032526,-177.67978872,0.00017999,2]
[398132925,1765395032535,-494.39050926,0.00017999,2]
[398132927,1765395032547,-5.60949074,0.00017999,2]
[398132929,1765395032557,-407.16778995,0.00017999,2]
[398132931,1765395032568,-92.83221005,0.00017999,2]
[398132933,1765395032579,-500.0,0.00017999,2]
[398132936,1765395032589,-500.0,0.00017999,2]
[398132938,1765395032598,-500.0,0.00017999,2]
[398132940,1765395032608,-500.0,0.00017999,2]
[398132942,1765395032618,-500.0,0.00017999,2]
[398132944,1765395032628,-250.0,0.00017999,2]
[398132946,1765395032638,-500.0,0.00017999,2]
[398132948,1765395032647,-500.0,0.00017999,2]
[398132950,1765395032657,-500.0,0.00017999,2]
[398132952,1765395032670,-500.0,0.00017999,2]
[398132954,1765395032680,-500.0,0.00017999,2]
[398132956,1765395032690,-500.0,0.00017999,2]
[398132958,1765395032700,-500.0,0.00017999,2]
[398132960,1765395032709,-451.11488991,0.00017999,2]
[398132963,1765395032721,-48.88511009,0.00017999,2]
[398132965,1765395032731,-250.0,0.00017999,2]
[398132967,1765395032740,-500.0,0.00017999,2]
[398132969,1765395032750,-500.0,0.00017999,2]
[398132971,1765395032759,-500.0,0.00017999,2]
[398132973,1765395032768,-500.0,0.00017999,2]
[398132975,1765395032778,-500.0,0.00017999,2]
[398132977,1765395032787,-500.0,0.00017999,2]
[398132979,1765395032797,-500.0,0.00017999,2]
[398132981,1765395032806,-500.0,0.00017999,2]
[398132983,1765395032816,-114601.99636803,0.00018,2]
[398132985,1765395032832,-7851.11463165,0.00018,2]
[398132986,1765395032844,-1131.66823526,0.00018,2]
[398132987,1765395033708,-320.06483356,0.00018,2]
[398132988,1765395035265,-243.43413665,0.00018,2]
[398132989,1765395036764,-218.11660119,0.00018,2]
[398132991,1765395038063,-1370.716068,0.00018,2]
[398132992,1765395038170,-829.57102,0.00018,2]
[398132993,1765395038225,-1299128.44314664,0.00018,2]
[398132994,1765395038235,-10216.77722806,0.0001801,2]
[398132995,1765395038246,-250.0,0.0001821,2]
[398132996,1765395038256,-1000.0,0.00018421,2]
[398132997,1765395038266,-1000.0,0.00018421,2]
[398132998,1765395038275,-1000.0,0.00018421,2]
[398132999,1765395038286,-1000.0,0.00018421,2]
[398133000,1765395038296,-1000.0,0.00018421,2]
[398133001,1765395038306,-500.0,0.00018421,2]
[398133002,1765395038315,-150.85,0.000188,2]
[398133003,1765395038326,-150.85,0.000188,2]
[398133004,1765395038336,-150.85,0.000188,2]
[398133005,1765395038346,-1500.0,0.00018968,2]
[398133006,1765395038356,-1500.0,0.00018968,2]
[398133007,1765395038366,-1500.0,0.00018968,2]
[398133008,1765395038376,-1500.0,0.00018968,2]
[398133009,1765395038386,-437.39288535,0.00018968,2]
[398133010,1765395038396,-150.85,0.0001899,2]
[398133011,1765395038406,-110448.07880267,0.00019,2]
[398133012,1765395038415,-2000.0,0.00019516,2]
[398133013,1765395038425,-1601.59824678,0.00019516,2]
[398133014,1765395038436,-1189.11464765,0.00019516,2]
[398133015,1765395038447,-1680.0,0.00019638,2]
[398133016,1765395038457,-420.0,0.00019638,2]
[398133017,1765395038467,-1680.0,0.00019734,2]
[398133018,1765395038477,-250.0,0.000198,2]
[398133019,1765395038486,-2500.0,0.00020064,2]
[398133020,1765395038497,-2022.228108,0.00020612,2]
[398133021,1765395038508,-10216.77722798,0.00020624,2]
[398133022,1765395038518,-984.0,0.00021427,2]
[398133023,1765395038528,-587.0,0.00021427,2]
[398133024,1765395038539,-2351.0,0.00021638,2]
[398133025,1765395038549,-1000.0,0.00021917,2]
[398133027,1765395038558,-342.33099419,0.00022954,2]
[398133029,1765395038568,-939.0,0.00023188,2]
[398133031,1765395038578,-10216.77722798,0.00023238,2]
[398133033,1765395038588,-823.0,0.00023379,2]
[398133035,1765395038598,-250.0,0.0002369,2]
[398133037,1765395038607,-3292.0,0.00023726,2]
[398133039,1765395038617,-166.59050349,0.00023816,2]
[398133041,1765395038628,-999.0,0.00023968,3]
[398133043,1765395038638,-250.0,0.000245,2]
[398133045,1765395038649,-1000.0,0.00024658,2]
[398133047,1765395038659,-5015.97474587,0.000248,3]
[398133049,1765395038670,-309.60436378,0.00024814,2]
[398133051,1765395038680,-150.85,0.0002489,2]
[398133052,1765395038689,-111686.572842,0.000249,3]
[398133053,1765395038700,-250.0,0.00024909,2]
[398133054,1765395038710,-150.85,0.0002499,2]
[398133055,1765395038719,-187698.38522262,0.00025,2]
[398133056,1765395038730,-1000.0,0.00025105,2]
[398133057,1765395038740,-1152.0,0.0002551,2]
[398133058,1765395038751,-10216.77722798,0.00025852,2]
[398133059,1765395038762,-500.0,0.00025853,7]
[398133060,1765395038773,-4609.0,0.00026015,2]
[398133061,1765395038783,-1970.27,0.000274,2]
[398133062,1765395038793,-1970.27,0.000274,2]
[398133063,1765395038803,-1970.27,0.000274,2]
[398133064,1765395038813,-1970.27,0.000274,2]
[398133065,1765395038823,-1970.27,0.000274,2]
[398133066,1765395038835,-1237.0,0.00027834,2]
[398133067,1765395038845,-1000.0,0.00028243,2]
[398133068,1765395038855,-235.78900249,0.00028282,2]